fUST/lending_fUST_20250127
["ID","MTS","AMOUNT","RATE_DAILY","PERIOD"]
[350501701,1737930642193,-500.0,0.00016497,2]
[350501702,1737930642202,-500.0,0.00016497,2]
[350501703,1737930642211,-500.0,0.00016497,2]
[350501704,1737930642221,-500.0,0.00016497,2]
[350501705,1737930642230,-547.87103451,0.00016497,2]
[350501706,1737930642240,-500.0,0.00016497,2]
[350501707,1737930642249,-500.0,0.00016497,2]
[350501708,1737930642259,-514.16207308,0.00016497,2]
[350501709,1737930642268,-500.0,0.00016497,2]
[350501710,1737930642278,-500.0,0.00016497,2]
[350501711,1737930642288,-500.0,0.00016497,2]
[350501712,1737930642297,-500.0,0.00016497,2]
[350501713,1737930642306,-635.48991678,0.00016497,2]
[350501714,1737930642315,-500.0,0.00016497,2]
[350501715,1737930642325,-500.0,0.00016497,2]
[350501716,1737930642334,-500.0,0.00016497,2]
[350501717,1737930642343,-500.0,0.00016497,2]
[350501718,1737930642353,-500.0,0.00016497,2]
[350501719,1737930642362,-500.0,0.00016497,2]
[350501720,1737930642372,-500.0,0.00016497,2]
[350501721,1737930642381,-500.0,0.00016497,2]
[350501722,1737930642390,-500.0,0.00016497,2]
[350501723,1737930642400,-500.0,0.00016497,2]
[350501724,1737930642409,-500.0,0.00016497,2]
[350501725,1737930642419,-500.0,0.00016497,2]
[350501726,1737930642428,-500.0,0.00016497,2]
[350501727,1737930642437,-500.0,0.00016497,2]
[350501728,1737930642447,-500.0,0.00016497,2]
[350501729,1737930642456,-200.0,0.00016497,2]
[350501730,1737930642466,-500.0,0.00016497,2]
[350501731,1737930642475,-507.34519939,0.00016497,2]
[350501732,1737930642484,-500.0,0.00016497,2]
[350501733,1737930642494,-500.0,0.00016497,2]
[350501734,1737930642503,-500.0,0.00016497,2]
[350501735,1737930642513,-500.0,0.00016497,2]
[350501736,1737930642522,-505.22141006,0.00016497,2]
[350501737,1737930642531,-500.0,0.00016497,2]
[350501738,1737930642540,-500.0,0.00016497,2]
[350501739,1737930642550,-500.0,0.00016497,2]
[350501740,1737930642559,-500.0,0.00016497,2]
[350501741,1737930642568,-601.43069442,0.00016497,2]
[350501742,1737930642578,-500.0,0.00016497,2]
[350501743,1737930642587,-500.0,0.00016497,2]
[350501744,1737930642596,-500.0,0.00016497,2]
[350501745,1737930642606,-512.2123169,0.00016497,2]
[350501746,1737930642615,-500.0,0.00016497,2]
[350501747,1737930642624,-500.0,0.00016497,2]
[350501748,1737930642637,-500.0,0.00016497,2]
[350501749,1737930642648,-500.0,0.00016497,2]
[350501750,1737930642657,-500.0,0.00016497,2]
[350501751,1737930642667,-500.0,0.00016497,2]
[350501752,1737930642676,-500.0,0.00016497,2]
[350501753,1737930642685,-500.0,0.00016497,2]
[350501754,1737930642695,-500.0,0.00016497,2]
[350501755,1737930642704,-500.0,0.00016497,2]
[350501756,1737930642714,-500.0,0.00016497,2]
[350501757,1737930642726,-500.0,0.00016497,2]
[350501758,1737930642735,-501.83553127,0.00016497,2]
[350501759,1737930642744,-500.0,0.00016497,2]
[350501760,1737930642755,-500.0,0.00016497,2]
[350501761,1737930642764,-484.71326663,0.00016497,2]
[350501762,1737930642779,-15.28673337,0.00016497,2]
[350501763,1737930642789,-500.0,0.00016497,2]
[350501764,1737930642798,-500.0,0.00016497,2]
[350501765,1737930642807,-500.0,0.00016497,2]
[350501766,1737930642816,-500.0,0.00016497,2]
[350501767,1737930642825,-500.0,0.00016497,2]
[350501768,1737930642834,-500.0,0.00016497,2]
[350501769,1737930642843,-500.0,0.00016497,2]
[350501770,1737930642853,-154.07367525,0.00016497,2]
[350501771,1737930642862,-500.0,0.00016497,2]
[350501772,1737930642871,-500.0,0.00016497,2]
[350501773,1737930642881,-500.0,0.00016497,2]
[350501774,1737930642891,-500.0,0.00016497,2]
[350501775,1737930642900,-505.08942528,0.00016497,2]
[350501776,1737930642910,-500.0,0.00016497,2]
[350501777,1737930642919,-500.0,0.00016497,2]
[350501778,1737930642928,-500.0,0.00016497,2]
[350501779,1737930642938,-500.0,0.00016497,2]
[350501780,1737930642947,-500.0,0.00016497,2]
[350501781,1737930642957,-509.92873458,0.00016497,2]
[350501782,1737930642966,-500.0,0.00016497,2]
[350501783,1737930642976,-513.43229977,0.00016497,2]
[350501784,1737930642985,-500.0,0.00016497,2]
[350501785,1737930642994,-500.0,0.00016497,2]
[350501786,1737930643003,-500.0,0.00016497,2]
[350501787,1737930643012,-500.0,0.00016497,2]
[350501788,1737930643022,-273.21911821,0.00016497,2]
[350501826,1737930643695,-226.78088179,0.00016497,2]
[350501829,1737930643705,-500.0,0.00016497,2]
[350501831,1737930643717,-500.0,0.00016497,2]
[350501833,1737930643727,-500.0,0.00016497,2]
[350501834,1737930643735,-500.0,0.00016497,2]
[350501836,1737930643746,-500.0,0.00016497,2]
[350501838,1737930643755,-449.46208928,0.00016497,2]
[350501840,1737930643766,-506.81955045,0.00016497,2]
[350501843,1737930643776,-500.0,0.00016497,2]
[350501845,1737930643786,-500.0,0.00016497,2]
[350501847,1737930643795,-500.0,0.00016497,2]
[350501849,1737930643806,-500.0,0.00016497,2]
[350501851,1737930643815,-500.0,0.00016497,2]
[350501853,1737930643824,-555.3251714,0.00016497,2]
[350501854,1737930643833,-500.0,0.00016497,2]
[350501857,1737930643843,-500.0,0.00016497,2]
[350501858,1737930643852,-500.0,0.00016497,2]
[350501861,1737930643862,-500.0,0.00016497,2]
[350501862,1737930643871,-500.0,0.00016497,2]
[350501864,1737930643881,-500.0,0.00016497,2]
[350501867,1737930643890,-500.0,0.00016497,2]
[350501869,1737930643901,-500.0,0.00016497,2]
[350501870,1737930643910,-500.0,0.00016497,2]
[350501873,1737930643920,-500.0,0.00016497,2]
[350501875,1737930643929,-500.0,0.00016497,2]
[350501876,1737930643939,-500.0,0.00016497,2]
[350501879,1737930643948,-501.63229707,0.00016497,2]
[350501881,1737930643957,-500.0,0.00016497,2]
[350501883,1737930643967,-500.0,0.00016497,2]
[350501885,1737930643976,-500.0,0.00016497,2]
[350501886,1737930643985,-500.0,0.00016497,2]
[350501888,1737930643995,-500.0,0.00016497,2]
[350501891,1737930644005,-500.0,0.00016497,2]
[350501892,1737930644014,-500.0,0.00016497,2]
[350501895,1737930644024,-500.0,0.00016497,2]
[350501897,1737930644033,-500.0,0.00016497,2]
[350501899,1737930644043,-508.73379312,0.00016497,2]
[350501901,1737930644052,-500.0,0.00016497,2]
[350501903,1737930644061,-500.0,0.00016497,2]
[350501905,1737930644071,-500.0,0.00016497,2]
[350501907,1737930644082,-500.0,0.00016497,2]
[350501909,1737930644091,-500.0,0.00016497,2]
[350501911,1737930644101,-500.0,0.00016497,2]
[350501913,1737930644110,-500.0,0.00016497,2]
[350501915,1737930644119,-500.0,0.00016497,2]
[350501916,1737930644129,-516.26,0.00016497,2]
[350501918,1737930644138,-500.0,0.00016497,2]
[350501921,1737930644149,-500.0,0.00016497,2]
[350501923,1737930644158,-500.0,0.00016497,2]
[350501925,1737930644168,-500.0,0.00016497,2]
[350501927,1737930644177,-390.85512548,0.00016497,2]
[350501929,1737930644187,-500.0,0.00016497,2]
[350501931,1737930644196,-500.0,0.00016497,2]
[350501933,1737930644205,-500.0,0.00016497,2]
[350501935,1737930644214,-500.0,0.00016497,2]
[350501937,1737930644223,-618.31968685,0.00016497,2]
[350501939,1737930644233,-500.0,0.00016497,2]
[350501940,1737930644242,-266.38288378,0.00016497,2]
[350501943,1737930644253,-500.0,0.00016497,2]
[350501945,1737930644262,-500.0,0.00016497,2]
[350501946,1737930644271,-500.0,0.00016497,2]
[350501948,1737930644281,-500.0,0.00016497,2]
[350501950,1737930644290,-500.0,0.00016497,2]
[350501953,1737930644299,-500.0,0.00016497,2]
[350501955,1737930644309,-500.0,0.00016497,2]
[350501957,1737930644319,-500.0,0.00016497,2]
[350501958,1737930644328,-500.0,0.00016497,2]
[350501961,1737930644338,-509.30789237,0.00016497,2]
[350501963,1737930644347,-500.0,0.00016497,2]
[350501965,1737930644357,-500.0,0.00016497,2]
[350501967,1737930644366,-500.0,0.00016497,2]
[350501969,1737930644375,-1004.51971605,0.00016497,2]
[350501971,1737930644384,-500.0,0.00016497,2]
[350501973,1737930644394,-500.0,0.00016497,2]
[350501975,1737930644403,-570.73,0.00016497,2]
[350501977,1737930644412,-500.0,0.00016497,2]
[350501978,1737930644421,-503.08655204,0.00016497,2]
[350501980,1737930644431,-500.0,0.00016497,2]
[350501982,1737930644440,-500.0,0.00016497,2]
[350501984,1737930644449,-500.0,0.00016497,2]
[350501986,1737930644458,-500.0,0.00016497,2]
[350501988,1737930644467,-500.0,0.00016497,2]
[350501990,1737930644477,-500.0,0.00016497,2]
[350501993,1737930644486,-500.0,0.00016497,2]
[350501994,1737930644496,-500.0,0.00016497,2]
[350501997,1737930644506,-418.03064886,0.00016497,2]
[350501999,1737930644515,-172.14531038,0.00016497,2]
[350502001,1737930644525,-500.0,0.00016497,2]
[350502003,1737930644534,-611.77036824,0.00016497,2]
[350502004,1737930644543,-500.0,0.00016497,2]
[350502007,1737930644552,-500.0,0.00016497,2]
[350502009,1737930644562,-500.0,0.00016497,2]
[350502010,1737930644571,-500.0,0.00016497,2]
[350502012,1737930644579,-500.0,0.00016497,2]
[350502015,1737930644589,-500.0,0.00016497,2]
[350502016,1737930644599,-500.0,0.00016497,2]
[350502019,1737930644609,-500.0,0.00016497,2]
[350502021,1737930644619,-502.42080201,0.00016497,2]
[350502023,1737930644628,-502.48009893,0.00016497,2]
[350502025,1737930644638,-500.0,0.00016497,2]
[350502027,1737930644649,-500.0,0.00016497,2]
[350502029,1737930644658,-500.0,0.00016497,2]
[350502031,1737930644668,-500.0,0.00016497,2]
[350502033,1737930644678,-195.09048606,0.00016497,2]
[350502081,1737930646218,-304.90951394,0.00016497,2]
[350502082,1737930646228,-237.12498443,0.00016497,2]
[350502083,1737930646238,-293.72550163,0.00016497,2]
[350502084,1737930929188,2000.0,0.000235,120]
[350502085,1737931005221,192.224001,0.00013973,2]
[350502118,1737931832278,-267.9904157,0.00015539,2]
[350502119,1737931832287,-500.0,0.00015972,2]
[350502120,1737931832297,-240.666,0.0001625,2]
[350502121,1737931832307,-300.0,0.00016492,2]
[350502122,1737931832317,-195.84,0.00016493,2]
[350502123,1737931832326,-176.42,0.00016493,2]
[350502124,1737931832335,-206.27449837,0.00016493,2]
[350502125,1737931832345,-500.0,0.00016493,2]
[350502126,1737931832354,-501.83115626,0.00016493,2]
[350502127,1737931832364,-466.93887757,0.00016493,2]
[350502128,1737931832373,-531.25337721,0.00016493,2]
[350502129,1737931832529,-283.88,0.00016493,2]
[350502130,1737931832539,-500.0,0.00016493,2]
[350502131,1737931832549,-500.0,0.00016493,2]
[350502132,1737931832558,-500.0,0.00016493,2]
[350502133,1737931832567,-500.0,0.00016493,2]
[350502134,1737931832576,-500.0,0.00016493,2]
[350502135,1737931832586,-743.9,0.00016496,2]
[350502136,1737931832595,-428.81,0.00016496,2]
[350502137,1737931832605,-500.0,0.00016496,2]
[350502138,1737931832614,-500.0,0.00016496,2]
[350502139,1737931832623,-500.0,0.00016496,2]
[350502140,1737931832633,-1475.73,0.00016496,2]
[350502141,1737931832642,-500.0,0.00016496,2]
[350502142,1737931832652,-500.0,0.00016496,2]
[350502143,1737931832661,-500.0,0.00016496,2]
[350502144,1737931832670,-500.0,0.00016496,2]
[350502145,1737931832679,-2916.84,0.00016496,2]
[350502146,1737931832688,-954.36,0.00016496,2]
[350502147,1737931832698,-1025.36419776,0.00016533,2]
[350502148,1737931832710,-500.0,0.00016628,2]
[350502149,1737931832719,-384.47,0.00016628,2]
[350502150,1737931832730,-273.22,0.00016628,2]
[350502151,1737931832739,-577.35,0.00016628,2]
[350502152,1737931832748,-500.0,0.00016628,2]
[350502153,1737931832758,-338.02,0.00016628,2]
[350502154,1737931832767,-820.27,0.00016628,2]
[350502155,1737931832777,-500.0,0.00016628,2]
[350502156,1737931832787,-500.0,0.00016628,2]
[350502157,1737931832796,-641.58,0.00016628,2]
[350502158,1737931832806,-296.42,0.00016628,2]
[350502159,1737931832820,-500.0,0.00016628,2]
[350502160,1737931832831,-500.0,0.00016628,2]
[350502161,1737931832840,-223.13,0.00016629,2]
[350502162,1737931832849,-234.48,0.00016629,2]
[350502163,1737931832859,-402.37,0.00016629,2]
[350502164,1737931832868,-220.57,0.00016629,2]
[350502165,1737931832877,-361.45,0.00016629,2]
[350502166,1737931832887,-250.89,0.00016629,2]
[350502167,1737931832896,-191.04,0.00016629,2]
[350502168,1737931832906,-500.0,0.00016629,2]
[350502169,1737931832915,-500.0,0.00016629,2]
[350502170,1737931832924,-174.53,0.00016629,2]
[350502171,1737931832933,-257.4,0.00016629,2]
[350502172,1737931832943,-391.04,0.00016629,2]
[350502173,1737931832952,-500.0,0.00016629,2]
[350502174,1737931832961,-609.300295,0.00016632,2]
[350502175,1737931832971,-609.300295,0.00016632,2]
[350502176,1737931832981,-151.0,0.00016633,2]
[350502177,1737931832991,-216.769225,0.00016633,2]
[350502178,1737931833000,-743.9,0.00016633,2]
[350502179,1737931833009,-548.45,0.00016633,2]
[350502180,1737931833019,-306.51,0.00016633,2]
[350502181,1737931833029,-381.18,0.00016633,2]
[350502182,1737931833039,-1475.73,0.00016633,2]
[350502183,1737931833049,-300.8,0.00016633,2]
[350502184,1737931833058,-500.0,0.00016633,2]
[350502185,1737931833067,-500.0,0.00016633,2]
[350502186,1737931833077,-195.04,0.00016633,2]
[350502187,1737931833091,-2916.84,0.00016633,2]
[350502188,1737931833101,-954.36,0.00016633,2]
[350502189,1737931833110,-151.0,0.00016635,2]
[350502190,1737931833120,-151.0,0.00016635,2]
[350502191,1737931833130,-151.0,0.00016635,2]
[350502192,1737931833139,-151.0,0.00016635,2]
[350502193,1737931833150,-160.88700972,0.00016666,2]
[350502194,1737931833159,-154.2311524,0.000167,2]
[350502195,1737931833171,-215.3284382,0.000167,2]
[350502196,1737931833181,-307.9320692,0.000167,2]
[350502197,1737931833190,-215.3965244,0.000167,2]
[350502198,1737931833200,-154.0,0.00016728,2]
[350502199,1737931833210,-154.0,0.00016728,2]
[350502200,1737931833219,-500.0,0.00016765,2]
[350502201,1737931833229,-500.0,0.00016765,2]
[350502202,1737931833238,-820.27,0.00016765,2]
[350502203,1737931833247,-500.0,0.00016765,2]
[350502204,1737931833257,-500.0,0.00016765,2]
[350502205,1737931833267,-156.38,0.00016765,2]
[350502206,1737931833277,-500.88,0.00016766,2]
[350502207,1737931833286,-449.84,0.00016766,2]
[350502208,1737931833296,-367.49,0.00016766,2]
[350502209,1737931833306,-153.0,0.00016767,2]
[350502210,1737931833315,-743.9,0.0001677,2]
[350502211,1737931833325,-1475.73,0.0001677,2]
[350502212,1737931833334,-500.0,0.0001677,2]
[350502213,1737931833343,-500.0,0.0001677,2]
[350502214,1737931833353,-2916.84,0.0001677,2]
[350502215,1737931833362,-954.36,0.0001677,2]
[350502216,1737931833372,-154.0,0.00016774,2]
[350502217,1737931833382,-154.0,0.00016774,2]
[350502218,1737931833392,-215.3965244,0.000168,2]
[350502219,1737931833402,-154.2803338,0.000168,2]
[350502220,1737931833412,-170.4087778,0.000168,2]
[350502221,1737931833422,-151.0,0.000169,2]
[350502222,1737931833430,-189.143451,0.000169,2]
[350502223,1737931833439,-500.0,0.00016902,2]
[350502224,1737931833448,-500.0,0.00016902,2]
[350502225,1737931833458,-820.27,0.00016902,2]
[350502226,1737931833469,-389.13,0.00016902,2]
[350502227,1737931833478,-500.0,0.00016902,2]
[350502228,1737931833487,-151.0,0.00016907,2]
[350502229,1737931833496,-151.0,0.00016907,2]
[350502230,1737931833507,-743.9,0.00016907,2]
[350502231,1737931833517,-1475.73,0.00016907,2]
[350502232,1737931833526,-500.0,0.00016907,2]
[350502233,1737931833536,-500.0,0.00016907,2]
[350502234,1737931833545,-2916.84,0.00016907,2]
[350502235,1737931833555,-954.36,0.00016907,2]
[350502236,1737931833564,-14332.54365844,0.00017,2]
[350502282,1737931843194,-381.60850154,0.00016628,2]
[350502322,1737931955040,182.6128,0.00013973,2]
[350502327,1737932412983,200.46,0.00015,2]
[350502329,1737932806132,-205.0468682,0.00015117,2]
[350502330,1737932806153,-1032.3366932,0.00015232,2]
[350502331,1737932806173,-205.0468682,0.0001527,2]
[350502332,1737932806192,-205.0468682,0.00015424,2]
[350502333,1737932806212,-158.4626811,0.00015513,2]
[350502334,1737932806241,-162.865848,0.00015628,2]
[350502335,1737932806266,-1642.6113786,0.00015848,2]
[350502336,1737932806291,-155.730337,0.00015965,5]
[350502337,1737932806312,-244.729,0.000162,2]
[350502338,1737932806333,-290.7942443,0.00016438,2]
[350502339,1737932806354,-508.38149294,0.00016455,2]
[350502340,1737932806375,-300.0,0.00016494,2]
[350502341,1737932806395,-500.0,0.00016495,2]
[350502342,1737932806418,-500.0,0.00016495,2]
[350502343,1737932806440,-500.0,0.00016495,2]
[350502344,1737932806461,-287.44593701,0.00016495,2]
[350502345,1737932806488,-500.0,0.00016495,2]
[350502346,1737932806509,-500.0,0.00016495,2]
[350502347,1737932806536,-227.44608362,0.00016495,2]
[350502348,1737932806559,-500.0,0.00016495,2]
[350502349,1737932806583,-500.0,0.00016495,2]
[350502350,1737932806604,-500.0,0.00016495,2]
[350502351,1737932806625,-500.0,0.00016495,2]
[350502352,1737932806647,-500.0,0.00016495,2]
[350502353,1737932806668,-500.0,0.00016495,2]
[350502354,1737932806688,-500.0,0.00016495,2]
[350502355,1737932806708,-500.0,0.00016495,2]
[350502356,1737932806729,-500.0,0.00016495,2]
[350502357,1737932806751,-500.0,0.00016495,2]
[350502358,1737932806773,-500.0,0.00016495,2]
[350502359,1737932806796,-262.62649663,0.00016495,2]
[350502360,1737932830081,-300.0,0.00016494,2]
[350502361,1737932830106,-240.3224408,0.00016495,2]
[350502362,1737932857367,173.48216,0.00013973,2]
[350502410,1737933036838,-300.0,0.00016494,2]
[350502411,1737933036848,-13.8,0.00016495,2]
[350502412,1737933036860,-76.84106257,0.00016495,2]
[350502413,1737933036870,-223.20393743,0.00016495,2]
[350502414,1737933036882,-276.79606257,0.00016495,2]
[350502415,1737933036892,-500.0,0.00016495,2]
[350502416,1737933036902,-500.0,0.00016495,2]
[350502417,1737933036912,-500.0,0.00016495,2]
[350502418,1737933036921,-500.0,0.00016495,2]
[350502419,1737933036931,-500.0,0.00016495,2]
[350502420,1737933036940,-500.0,0.00016495,2]
[350502421,1737933036951,-500.0,0.00016495,2]
[350502422,1737933036961,-500.0,0.00016499,2]
[350502423,1737933036970,-500.0,0.00016499,2]
[350502424,1737933036980,-500.0,0.00016499,2]
[350502425,1737933036989,-2783.56975578,0.000165,2]
[350502426,1737933036999,-897.19367304,0.00016524,2]
[350502427,1737933037009,-2750.25978629,0.00016623,2]
[350502428,1737933037021,-1739.87021371,0.00016623,2]
[350502429,1737933037031,-500.0,0.00016623,2]
[350502430,1737933037041,-377.72978629,0.00016623,2]
[350502431,1737933037053,-260.025,0.00016623,2]
[350502432,1737933037065,-79.98521371,0.00016623,2]
[350502433,1737933037074,-413.66478629,0.00016623,2]
[350502434,1737933037086,-86.33521371,0.00016623,2]
[350502435,1737933037095,-275.8760074,0.00016623,2]
[350502436,1737933037105,-753.51021897,0.00016623,2]
[350502437,1737933037115,-500.0,0.00016623,2]
[350502438,1737933037128,-500.0,0.00016623,2]
[350502439,1737933037138,-500.0,0.00016623,2]
[350502440,1737933037147,-753.51021897,0.00016623,2]
[350502441,1737933037158,-644.30497313,0.00016623,2]
[350502442,1737933037168,-500.0,0.00016623,2]
[350502443,1737933037178,-691.12635983,0.00016623,2]
[350502444,1737933037191,-62.38385914,0.00016623,2]
[350502445,1737933037201,-455.01614086,0.00016623,2]
[350502459,1737933038296,-21.30847616,0.00016623,2]
[350502460,1737933038306,-753.51021897,0.00016623,2]
[350502462,1737933038316,-500.0,0.00016623,2]
[350502464,1737933038325,-753.51021897,0.00016623,2]
[350502465,1737933038335,-500.0,0.00016623,2]
[350502466,1737933038344,-753.51021897,0.00016623,2]
[350502467,1737933038358,-500.0,0.00016623,2]
[350502468,1737933038371,-753.51021897,0.00016623,2]
[350502469,1737933038384,-500.0,0.00016623,2]
[350502470,1737933038396,-753.51021897,0.00016623,2]
[350502471,1737933038409,-753.51021897,0.00016623,2]
[350502472,1737933038420,-753.51021897,0.00016623,2]
[350502473,1737933038430,-753.51021897,0.00016623,2]
[350502474,1737933038441,-753.51021897,0.00016623,2]
[350502475,1737933038455,-753.51021897,0.00016623,2]
[350502476,1737933038467,-753.51021897,0.00016623,2]
[350502477,1737933038479,-753.51021897,0.00016623,2]
[350502478,1737933038491,-753.51021897,0.00016623,2]
[350502479,1737933038503,-500.0,0.00016623,2]
[350502480,1737933038514,-753.51021897,0.00016623,2]
[350502481,1737933038527,-753.51021897,0.00016623,2]
[350502482,1737933038539,-753.51021897,0.00016623,2]
[350502483,1737933038556,-753.51021897,0.00016623,2]
[350502484,1737933038567,-753.51021897,0.00016623,2]
[350502485,1737933038579,-753.51021897,0.00016623,2]
[350502486,1737933038593,-753.51021897,0.00016623,2]
[350502487,1737933038604,-753.51021897,0.00016623,2]
[350502488,1737933038616,-753.51021897,0.00016623,2]
[350502489,1737933038629,-753.51021897,0.00016623,2]
[350502490,1737933038642,-753.51021897,0.00016623,2]
[350502491,1737933038655,-753.51021897,0.00016623,2]
[350502492,1737933038666,-753.51021897,0.00016623,2]
[350502493,1737933038678,-753.51021897,0.00016623,2]
[350502494,1737933038690,-753.51021897,0.00016623,2]
[350502495,1737933038703,-866.0548915,0.00016623,2]
[350502496,1737933038715,-866.0548915,0.00016623,2]
[350502497,1737933038726,-866.0548915,0.00016623,2]
[350502498,1737933038737,-866.0548915,0.00016623,2]
[350502499,1737933038747,-866.0548915,0.00016623,2]
[350502500,1737933038757,-866.0548915,0.00016623,2]
[350502501,1737933038769,-866.0548915,0.00016623,2]
[350502502,1737933038779,-866.0548915,0.00016623,2]
[350502503,1737933038790,-866.0548915,0.00016623,2]
[350502504,1737933038802,-866.0548915,0.00016623,2]
[350502505,1737933038814,-866.0548915,0.00016623,2]
[350502506,1737933038827,-866.0548915,0.00016623,2]
[350502507,1737933038839,-866.0548915,0.00016623,2]
[350502508,1737933038849,-866.0548915,0.00016623,2]
[350502509,1737933038862,-866.0548915,0.00016623,2]
[350502510,1737933038873,-866.0548915,0.00016623,2]
[350502511,1737933038885,-866.0548915,0.00016623,2]
[350502512,1737933038897,-866.0548915,0.00016623,2]
[350502513,1737933038910,-866.0548915,0.00016623,2]
[350502514,1737933038921,-305.48168028,0.00016623,2]
[350502515,1737933039068,-560.57321122,0.00016623,2]
[350502516,1737933039079,-866.0548915,0.00016623,2]
[350502517,1737933039089,-866.0548915,0.00016623,2]
[350502518,1737933039100,-866.0548915,0.00016623,2]
[350502519,1737933039110,-866.0548915,0.00016623,2]
[350502520,1737933039120,-866.0548915,0.00016623,2]
[350502521,1737933039131,-866.0548915,0.00016623,2]
[350502522,1737933039142,-866.0548915,0.00016623,2]
[350502523,1737933039152,-866.0548915,0.00016623,2]
[350502524,1737933039162,-866.0548915,0.00016623,2]
[350502525,1737933039173,-866.0548915,0.00016623,2]
[350502526,1737933039184,-866.0548915,0.00016623,2]
[350502527,1737933039194,-866.0548915,0.00016623,2]
[350502528,1737933039205,-866.0548915,0.00016623,2]
[350502529,1737933039216,-851.6206433,0.00016623,2]
[350502530,1737933039226,-851.6206433,0.00016623,2]
[350502531,1737933039236,-851.6206433,0.00016623,2]
[350502532,1737933039246,-851.6206433,0.00016623,2]
[350502533,1737933039257,-851.6206433,0.00016623,2]
[350502534,1737933039268,-851.6206433,0.00016623,2]
[350502535,1737933039279,-851.6206433,0.00016623,2]
[350502536,1737933039289,-851.6206433,0.00016623,2]
[350502537,1737933039300,-851.6206433,0.00016623,2]
[350502538,1737933039311,-851.6206433,0.00016623,2]
[350502539,1737933039321,-851.6206433,0.00016623,2]
[350502540,1737933039332,-851.6206433,0.00016623,2]
[350502541,1737933039342,-851.6206433,0.00016623,2]
[350502542,1737933039353,-724.45199513,0.00016623,2]
[350502543,1737933039367,-127.16864817,0.00016623,2]
[350502544,1737933039377,-851.6206433,0.00016623,2]
[350502545,1737933039387,-851.6206433,0.00016623,2]
[350502546,1737933039397,-851.6206433,0.00016623,2]
[350502547,1737933039408,-851.6206433,0.00016623,2]
[350502548,1737933039418,-782.78634049,0.00016623,2]
[350502549,1737933039431,-68.83430282,0.00016623,2]
[350502550,1737933039442,-851.62064331,0.00016623,2]
[350502551,1737933039453,-851.6206433,0.00016623,2]
[350502552,1737933039464,-851.6206433,0.00016623,2]
[350502553,1737933039475,-5101.87930969,0.00016624,5]
[350502554,1737933039485,-157.431518,0.00016624,2]
[350502555,1737933039495,-4490.13,0.00016624,2]
[350502556,1737933039506,-4490.13,0.00016624,2]
[350502557,1737933039518,-4490.13,0.00016624,2]
[350502558,1737933039529,-4490.13,0.00016624,2]
[350502559,1737933039540,-4490.13,0.00016624,2]
[350502560,1737933039553,-200.6460429,0.00016624,2]
[350502561,1737933039563,-11310.36991348,0.00016625,5]
[350502580,1737933044518,-4668.08528146,0.00016625,5]
[350502582,1737933044961,-1543.174533,0.00016625,5]
[350502583,1737933044973,-270.6946004,0.00016625,5]
[350502602,1737933046387,-500.0,0.00016499,2]
[350502603,1737933046396,-3002.33380191,0.00016625,5]
[350502604,1737933046407,-576.23831736,0.00016625,2]
[350502605,1737933046416,-381.53550351,0.00016625,2]
[350502606,1737933046426,-619.92,0.00016625,2]
[350502607,1737933046435,-119.97237722,0.00016625,2]
[350502608,1737933046446,-380.02762278,0.00016625,2]